{"text_format":"3","workbook":"xlsx","n_sheets":3,"sheets":["بيان حصر الإرث","أصول الإرث","التزامات الإرث"],"not_rendered":{"defined_names":1},"read":"whole","date_system":"1900"}

{"sheet":"بيان حصر الإرث","index":0,"n_rows":45,"n_cols":35,"rows_kept":45,"merged":[[0,1,0,30],[0,31,0,39],[1,1,5,39],[6,1,6,6],[6,7,6,39],[7,1,7,6],[7,7,7,39],[9,1,9,6],[9,7,9,39],[10,1,10,6],[10,7,10,39],[11,1,11,6],[11,7,11,20],[11,21,11,26],[11,27,11,30],[11,31,11,33],[11,34,11,39],[12,1,12,6],[12,7,12,20],[12,21,12,26],[13,1,13,6],[13,7,13,20],[13,21,13,26],[14,1,14,6],[14,7,14,20],[14,21,14,26],[15,1,15,6],[17,1,17,39],[18,1,18,6],[18,7,18,12],[18,13,18,15],[18,16,18,18],[18,19,18,26],[18,27,18,31],[18,32,18,39],[19,1,19,6],[19,7,19,12],[19,13,19,15],[19,16,19,18],[19,19,19,26],[19,27,19,31],[19,32,19,39],[20,1,20,6],[20,7,20,12],[20,13,20,15],[20,16,20,18],[20,19,20,26],[20,27,20,31],[20,32,20,39],[21,1,21,6],[21,7,21,12],[21,13,21,15],[21,16,21,18],[21,19,21,26],[21,27,21,31],[21,32,21,39],[22,1,22,6],[22,7,22,12],[22,13,22,15],[22,16,22,18],[22,19,22,26],[22,27,22,31],[22,32,22,39],[23,1,23,6],[23,7,23,12],[23,13,23,15],[23,16,23,18],[23,19,23,26],[23,27,23,31],[23,32,23,39],[25,1,25,39],[26,1,26,6],[26,7,26,12],[26,13,26,18],[26,19,26,26],[26,27,26,31],[26,32,26,39],[27,1,27,6],[27,7,27,12],[27,13,27,18],[27,19,27,26],[27,27,27,31],[27,32,27,39],[28,1,28,6],[28,7,28,12],[28,13,28,18],[28,19,28,26],[28,27,28,31],[28,32,28,39],[29,1,29,6],[29,7,29,12],[29,13,29,18],[29,19,29,26],[29,27,29,31],[29,32,29,39],[30,1,30,6],[30,7,30,12],[30,13,30,18],[30,19,30,26],[30,27,30,31],[30,32,30,39],[31,1,31,6],[31,7,31,12],[31,13,31,18],[31,19,31,26],[31,27,31,31],[31,32,31,39],[33,1,33,12],[33,14,33,39],[34,1,34,12],[34,14,34,21],[34,22,34,25],[34,26,34,33],[34,34,34,39],[35,2,35,12],[35,14,35,21],[35,22,35,25],[35,26,35,33],[35,34,35,39],[36,2,36,12],[36,14,36,21],[36,22,36,25],[36,26,36,33],[36,34,36,39],[37,2,37,12],[37,14,37,21],[37,22,37,25],[37,26,37,33],[37,34,37,39],[38,2,38,12],[38,14,38,21],[38,22,38,25],[38,26,38,33],[38,34,38,39],[39,2,39,12],[39,14,39,21],[39,22,39,25],[39,26,39,33],[39,34,39,39],[40,2,40,12],[40,14,40,21],[40,22,40,25],[40,26,40,33],[40,34,40,39],[41,2,41,12],[41,14,41,21],[41,22,41,25],[41,26,41,33],[41,34,41,39],[42,2,42,12],[42,14,42,21],[42,22,42,25],[42,26,42,33],[42,34,42,38],[43,2,43,12],[43,14,43,21],[43,22,43,25],[43,26,43,33],[43,34,43,39],[44,2,44,12],[44,14,44,21],[44,22,44,25],[44,26,44,33],[44,34,44,39]]}
[]
[null,"بيان حصر الإرث"]
[]
[]
[]
[]
[null,"اسم منفذ الوصية (المنفذين)",{"$nulls":5},"عطاء بدخشي"]
[null,"معلومات جهة الاتصال",{"$nulls":5},"4567 الشارع الرئيسي جدة، الرياض 98052"]
[]
[null,"اسم المتوفى",{"$nulls":5},"سلام بيطار"]
[null,"عنوان الشارع",{"$nulls":5},"6789 الشارع الرئيسي"]
[null,"المدينة",{"$nulls":5},"جدة",{"$nulls":13},"الولاية",{"$nulls":5},"NY",{"$nulls":3},"الرمز البريدي",null,null,98052]
[null,"رقم الضمان الاجتماعي",{"$nulls":5},"AAA-GG-SSSS",{"$nulls":13},"المهنة",{"$nulls":5},"طبيب أسنان"]
[null,"تاريخ الميلاد",{"$nulls":5},"1965-12-08",{"$nulls":13},"محل الميلاد",{"$nulls":5},"NY"]
[null,"تاريخ الوفاة",{"$nulls":5},{"$f":"TODAY()-3","v":"2022-05-16"},{"$nulls":13},"محل الوفاة",{"$nulls":5},"NY"]
[null,"معلومات إضافية"]
[]
[null,"  الزوجة والأبناء والمعالون الآخرون"]
[null,"الاسم",{"$nulls":5},"العلاقة",{"$nulls":5},"معالون",null,null,"العمر",null,null,"العنوان",{"$nulls":7},"رقم الهاتف",{"$nulls":4},"البريد الإلكتروني"]
[null,"امتياز سلمان",{"$nulls":5},"الممثل الشخصي",{"$nulls":5},"لا",null,null,30]
[null,"مايشا بشارة",{"$nulls":5},"الزوج/الزوجة",{"$nulls":5},"نعم",null,null,35]
[null,"الكسندر مارتنسون",{"$nulls":5},"الأطفال",{"$nulls":5},"نعم",null,null,12]
[]
[]
[]
[null,"مستشارون محترفون"]
[null,"نوع الاستشارة",{"$nulls":5},"الشخص الذي يمكن الاتصال به",{"$nulls":5},"الشركة",{"$nulls":5},"العنوان",{"$nulls":7},"رقم الهاتف",{"$nulls":4},"البريد الإلكتروني"]
[null,"محاسب"]
[null,"محامي"]
[null,"غير ذلك"]
[]
[]
[]
[null,"  قائمة مراجعة الشهادة",{"$nulls":12},"  بيان حصر الإرث المفصل"]
[null,"    عناصر قائمة الاختيار",{"$nulls":12},"أصول الوصية",{"$nulls":7},"القيمة بالدولار (ر.س.)",{"$nulls":3},"التزامات الوصية",{"$nulls":7},"القيمة بالدولار (ر.س.)"]
[null,"✔","الوصية الأخيرة أو الوصية أو أي وثائق أخرى",{"$nulls":11},{"$f":"'أصول الإرث'!B12","v":"الحسابات البنكية"},{"$nulls":7},{"$f":"'أصول الإرث'!G20","v":{"v":0,"d":"ر.س.‏ 0.00"}},{"$nulls":3},{"$f":"'التزامات الإرث'!B11","v":"القروض العقارية"},{"$nulls":7},{"$f":"'التزامات الإرث'!G18","v":{"v":0,"d":"ر.س.‏ 0.00"}}]
[null,"✔","عقد ومفاتيح إيجار الودائع الآمنة",{"$nulls":11},{"$f":"'أصول الإرث'!B22","v":"الاستثمارات الشخصية"},{"$nulls":7},{"$f":"'أصول الإرث'!G30","v":{"v":0,"d":"ر.س.‏ 0.00"}},{"$nulls":3},{"$f":"'التزامات الإرث'!B21","v":"القروض الشخصية وحدود الائتمان"},{"$nulls":7},{"$f":"'التزامات الإرث'!G28","v":{"v":0,"d":"ر.س.‏ 0.00"}}]
[null,"✖","كلمات مرور لأجهزة الكمبيوتر والحسابات عبر الإنترنت",{"$nulls":11},{"$f":"'أصول الإرث'!B32","v":"المصالح التجارية"},{"$nulls":7},{"$f":"'أصول الإرث'!G40","v":{"v":0,"d":"ر.س.‏ 0.00"}},{"$nulls":3},{"$f":"'التزامات الإرث'!B31","v":"المصالح التجارية"},{"$nulls":7},{"$f":"'التزامات الإرث'!G38","v":{"v":0,"d":"ر.س.‏ 0.00"}}]
[null,"✔","اتفاقيات الثقة الحية",{"$nulls":11},{"$f":"'أصول الإرث'!B42","v":"العقارات"},{"$nulls":7},{"$f":"'أصول الإرث'!G50","v":{"v":0,"d":"ر.س.‏ 0.00"}},{"$nulls":3},{"$f":"'التزامات الإرث'!B41","v":"بطاقات الائتمان"},{"$nulls":7},{"$f":"'التزامات الإرث'!G48","v":{"v":0,"d":"ر.س.‏ 0.00"}}]
[null,"✔","بوالص التأمين على الحياة والتأمين الصحي / الحوادث والتأمين",{"$nulls":11},{"$f":"'أصول الإرث'!B52","v":"خطط المعاش"},{"$nulls":7},{"$f":"'أصول الإرث'!G60","v":{"v":0,"d":"ر.س.‏ 0.00"}},{"$nulls":3},{"$f":"'التزامات الإرث'!B51","v":"التزامات أخرى"},{"$nulls":7},{"$f":"'التزامات الإرث'!G58","v":{"v":0,"d":"ر.س.‏ 0.00"}}]
[null,"✔","القوائم المالية",{"$nulls":11},{"$f":"'أصول الإرث'!B62","v":"التأمين"},{"$nulls":7},{"$f":"'أصول الإرث'!G70","v":{"v":0,"d":"ر.س.‏ 0.00"}}]
[null,"✔","إقرارات ضريبة الدخل للسنوات الثلاث الماضية",{"$nulls":11},{"$f":"'أصول الإرث'!B72","v":"القروض والرهون العقارية الخاصة"},{"$nulls":7},{"$f":"'أصول الإرث'!G80","v":{"v":0,"d":"ر.س.‏ 0.00"}}]
[null,"✔","شهادتي الميلاد والوفاة",{"$nulls":11},{"$f":"'أصول الإرث'!B82","v":"الفائدة في العقارات والصناديق الاستئمانية الأخرى"},{"$nulls":7},{"$f":"'أصول الإرث'!G90","v":{"v":0,"d":"ر.س.‏ 0.00"}}]
[null,"✖","السندات والرهون العقارية وبيانات الإيجار",{"$nulls":11},{"$f":"'أصول الإرث'!B92","v":"المؤثرات الشخصية والأصول الأخرى"},{"$nulls":7},{"$f":"'أصول الإرث'!G100","v":{"v":0,"d":"ر.س.‏ 0.00"}}]
[null,"☐","فواتير غير مدفوعة وملاحظات",{"$nulls":11},"جدول الأصول",{"$nulls":7},{"$f":"'أصول الإرث'!G10","v":{"v":0,"d":"ر.س.‏ 0.00"}},{"$nulls":3},"إجمالي الالتزامات",{"$nulls":7},{"$f":"SUM(AI36:AN44)","v":{"v":0,"d":"ر.س.‏ 0.00"}}]

{"sheet":"أصول الإرث","index":1,"n_rows":100,"n_cols":8,"rows_kept":100,"merged":[[0,1,0,7],[1,1,5,7],[6,1,7,7],[11,1,11,7],[12,1,12,7],[21,1,21,7],[22,1,22,7],[31,1,31,7],[32,1,32,7],[41,1,41,7],[42,1,42,7],[51,1,51,7],[52,1,52,7],[61,1,61,7],[62,1,62,7],[71,1,71,7],[72,1,72,7],[81,1,81,7],[82,1,82,7],[91,1,91,7],[92,1,92,7]]}
[]
[null,"أصول الوصية"]
[]
[]
[]
[]
[null,"استخدم ورقة العمل هذه لإنشاء جرد لأصول الوصية. سوف تحتاج إلى تحديد القيمة السوقية لكل أصل عقاري في تاريخ الوفاة. مراجعة كافة السجلات بما في ذلك البيانات المالية ووثائق التأمين والإقرارات الضريبية للحصول على قيم السوق. قد تحتاج أيضاً إلى الحصول على تقييم للعناصر الشخصية (مثل الأعمال الفنية والمجموعات والتحف وما إلى ذلك). تأكد من تضمين أي أصول أجنبية في المخزون أيضاً، مثل العقارات أو الأوراق المالية أو المصالح التجارية الخارجية. قد ترغب في الحصول على مساعدة مهنية للحصول على قيمة سوقية دقيقة للأصول الأجنبية."]
[]
[]
[null,"إجمالي الأصول",{"$nulls":4},{"$f":"جدول_الحسابات_البنكية[[#Totals],[الرصيد ]]+جدول_الاستثمارات_الشخصية[[#Totals],[قيمة السوق]]+جدول_المصالح_التجارية[[#Totals],[القيمة ]]+جدول_العقارات[[#Totals],[سعر السوق]]+جدول_خطط_المعاش[[#Totals],[القيمة ]]+جدول_التأمين[[#Totals],[قيمة النقد ]]+جدول_الرهون_العقارية[[#Totals],[الرصيد المستحق ]]+جدول_الودائع[[#Totals],[مبلغ توزيع]]+جدول_الأصول_الأخرى[[#Totals],[القيمة ]]","v":{"v":0,"d":"ر.س.‏ 0.00"}}]
[]
[null,"الحسابات البنكية"]
[null,"ضع قائمة بجميع الحسابات المصرفية بما في ذلك النقدية وشيكات المسافرين والحوالات البريدية والحسابات لدى البنوك التجارية وبنوك التوفير والاتحادات الائتمانية وما إلى ذلك. قم بتضمين جميع الأسماء المدرجة في الحساب والقيمة النقدية الفعلية التي تشير إلى الدولار بالضبط ومبلغ التغيير في وقت الوفاة."]
[null,"مؤسسة مالية ","العنوان","الهاتف","رقم الحساب","نوع الحساب","الرصيد ","الملاحظات"]
[]
[]
[]
[]
[]
[null,"الإجمالي",{"$nulls":4},{"$f":"SUBTOTAL(109,جدول_الحسابات_البنكية[[الرصيد ]])","v":{"v":0,"d":"ر.س.‏ 0.00"}}]
[]
[null,"الاستثمارات الشخصية"]
[null,"أدرج الحسابات النقدية، وحسابات الهامش، وحسابات التوفير المعفاة من الضرائب، وخطط مدخرات التقاعد المسجلة (RRSPs)، وصناديق دخل التقاعد المسجلة (RRIFs)، و صناديق دخل التقاعد المسجلة المقفلة وخطط مدخرات التقاعد المسجلة المقفلة، وصناديق دخل الحياة، وصناديق دخل التقاعد المقررة، ومدخرات التعليم المسجل الخطط والمعاشات وما إلى ذلك."]
[null,"الشركة","العنوان","الهاتف","رقم الحساب","المستفيد","قيمة السوق","الملاحظات"]
[]
[]
[]
[]
[]
[null,"الإجمالي",{"$nulls":4},{"$f":"SUBTOTAL(109,جدول_الاستثمارات_الشخصية[قيمة السوق])","v":{"v":0,"d":"ر.س.‏ 0.00"}}]
[]
[null,"المصالح التجارية"]
[null,"أدرج جميع المصالح التجارية بما في ذلك المؤسسات الفردية والممارسات المهنية والشركات والشراكات والشركات ذات المسؤولية المحدودة والشراكات والمشاريع المشتركة وغيرها من الكيانات التجارية غير المتداولة علناً. "]
[null,"اسم الشركة","العنوان","الهاتف","جهة الاتصال","النوع","القيمة ","الملاحظات"]
[]
[]
[]
[]
[]
[null,"الإجمالي",{"$nulls":4},{"$f":"SUBTOTAL(109,جدول_المصالح_التجارية[[القيمة ]])","v":{"v":0,"d":"ر.س.‏ 0.00"}}]
[]
[null,"العقارات"]
[null,"أدرج أي ممتلكات عقارية يكون فيها الزوج/الشريك المتوفى و/أو المتوفى على قيد الحياة مالكاً أو مالكاً مشتركًا أو له مصلحة بأي شكل من الأشكال، بما في ذلك الممتلكات المشتراة في التطورات الترفيهية والمشاركة بالوقت. الحصول على نسخ من السندات. تقديم وصف للعقار مع عنوانه الفعلي. أدرج القيمة السوقية العادلة للعقار بناءً على أحدث تقييم من قبل مقيم الضرائب."]
[null,"العنوان","العنوان الذي عقده","الهاتف","جهة الاتصال","سعر الشراء","سعر السوق","الملاحظات"]
[]
[]
[]
[]
[]
[null,"الإجمالي",{"$nulls":3},{"$f":"SUBTOTAL(109,جدول_العقارات[سعر الشراء])","v":{"v":0,"d":"ر.س.‏ 0.00"}},{"$f":"SUBTOTAL(109,جدول_العقارات[سعر السوق])","v":{"v":0,"d":"ر.س.‏ 0.00"}}]
[]
[null,"خطط المعاش"]
[null,"ضع قائمة بالمزايا المحددة أو المشتريات المالية أو المساهمات المحددة أو DPSP أو RRSP الجماعية، إلخ."]
[null,"الشركة","الهاتف","نوع الخطة","المستفيد","البريد الإلكتروني","القيمة ","الملاحظات"]
[]
[]
[]
[]
[]
[null,"الإجمالي",{"$nulls":4},{"$f":"SUBTOTAL(109,جدول_خطط_المعاش[[القيمة ]])","v":{"v":0,"d":"ر.س.‏ 0.00"}}]
[]
[null,"التأمين"]
[null,"قم بتضمين الصناديق المعيشية، وبوالص التأمين على الحياة مع المستفيدين المحددين وحسابات الاستثمار التي تم تحويلها عند الوفاة، كأصول غير مشروطة. إذا استفسرت المحكمة عن هذه الأصول، يمكن للمنفذ الرجوع بسهولة إلى قائمة الأصول غير الموثقة وشرح غيابها من جرد الوصية."]
[null,"المُصدر","رقم البوليصة","الهاتف","المستفيد","قيمة الظاهرية ","قيمة النقد ","الملاحظات"]
[]
[]
[]
[]
[]
[null,"الإجمالي",{"$nulls":3},{"$f":"SUBTOTAL(109,جدول_التأمين[[قيمة الظاهرية ]])","v":{"v":0,"d":"ر.س.‏ 0.00"}},{"$f":"SUBTOTAL(109,جدول_التأمين[[قيمة النقد ]])","v":{"v":0,"d":"ر.س.‏ 0.00"}}]
[]
[null,"القروض والرهون العقارية الخاصة"]
[null,"اذكر القروض والرهون العقارية التي كان المتوفى مقرضاً لها."]
[null,"اسم المقترض","العنوان","الهاتف","النوع","المبلغ الأصلي","الرصيد المستحق ","الملاحظات"]
[]
[]
[]
[]
[]
[null,"الإجمالي",{"$nulls":3},{"$f":"SUBTOTAL(109,جدول_الرهون_العقارية[المبلغ الأصلي])","v":{"v":0,"d":"ر.س.‏ 0.00"}},{"$f":"SUBTOTAL(109,جدول_الرهون_العقارية[[الرصيد المستحق ]])","v":{"v":0,"d":"ر.س.‏ 0.00"}}]
[]
[null,"الفائدة في العقارات والصناديق الاستئمانية الأخرى"]
[null,"أدرج الأصول المسجلة باسم الشخص المتوفى والمحتفظ بها نيابة عن آخرين (على سبيل المثال، الأصول التي يحتفظ بها الشخص المتوفى بصفته وصياً أو الأصول المملوكة بموجب توكيل رسمي)."]
[null,"اسم التركة / الثقة","اسم المنفذ/الوصي","الهاتف","العنوان","البريد الإلكتروني","مبلغ توزيع","الملاحظات"]
[]
[]
[]
[]
[]
[null,"الإجمالي",{"$nulls":4},{"$f":"SUBTOTAL(109,جدول_الودائع[مبلغ توزيع])","v":{"v":0,"d":"ر.س.‏ 0.00"}}]
[]
[null,"المؤثرات الشخصية والأصول الأخرى"]
[null,"ضع قائمة بجميع العناصر الشخصية على سبيل المثال؛ سيارات، مجوهرات، فنون، تحف، أثاث. قم بتضمين العناصر التي ربما تم الاحتفاظ بها في صندوق ودائع آمن أو حفظها."]
[null,"وصف البند","الموقع","الهاتف","جهة الاتصال","المستفيد","القيمة ","الملاحظات"]
[]
[]
[]
[]
[]
[null,"الإجمالي",{"$nulls":4},{"$f":"SUBTOTAL(109,جدول_الأصول_الأخرى[[القيمة ]])","v":{"v":0,"d":"ر.س.‏ 0.00"}}]

{"sheet":"التزامات الإرث","index":2,"n_rows":58,"n_cols":8,"rows_kept":58,"merged":[[0,1,0,7],[1,1,5,7],[6,1,6,7],[10,1,10,7],[20,1,20,7],[30,1,30,7],[40,1,40,7],[50,1,50,7]]}
[]
[null,"التزامات الوصية"]
[]
[]
[]
[]
[null,"استخدم ورقة العمل هذه لالتقاط تفاصيل التزامات التركة، المحلية والأجنبية. سوف تحتاج إلى تقييم كل التزام كما في تاريخ الوفاة."]
[]
[null,"إجمالي الأصول",{"$nulls":4},{"$f":"SUM(G18,G28,G38,G48,G58)","v":{"v":0,"d":"ر.س.‏ 0.00"}}]
[]
[null,"القروض العقارية"]
[null,"مؤسسة مالية ","العنوان","الهاتف","العنوان الذي عقده","رقم الحساب","الرصيد ","الملاحظات"]
[]
[]
[]
[]
[]
[null,"الإجمالي",{"$nulls":4},{"$f":"SUBTOTAL(109,جدول_الحسابات_البنكية2[[الرصيد ]])","v":{"v":0,"d":"ر.س.‏ 0.00"}}]
[]
[]
[null,"القروض الشخصية وحدود الائتمان"]
[null,"مؤسسة مالية","العنوان","الهاتف"," رقم الحساب","النوع","الرصيد ","الملاحظات"]
[]
[]
[]
[]
[]
[null,"الإجمالي",{"$nulls":4},{"$f":"SUBTOTAL(109,جدول_الاستثمارات_الشخصية3[[الرصيد ]])","v":{"v":0,"d":"ر.س.‏ 0.00"}}]
[]
[]
[null,"المصالح التجارية"]
[null,"اسم الشركة","العنوان"," الهاتف"," جهة الاتصال","النوع","القيمة ","الملاحظات"]
[]
[]
[]
[]
[]
[null,"الإجمالي",{"$nulls":4},{"$f":"SUBTOTAL(109,جدول_المصالح_التجارية4[[القيمة ]])","v":{"v":0,"d":"ر.س.‏ 0.00"}}]
[]
[]
[null,"بطاقات الائتمان"]
[null,"شركة بطاقات الائتمان","عنوان الشركة","الهاتف","رقم البطاقة","تاريخ انتهاء الصلاحية ","الرصيد ","الملاحظات"]
[]
[]
[]
[]
[]
[null,"الإجمالي",{"$nulls":4},{"$f":"SUBTOTAL(109,جدول_العقارات5[[الرصيد ]])","v":{"v":0,"d":"ر.س.‏ 0.00"}}]
[]
[]
[null,"التزامات أخرى"]
[null,"وصف البند","الموقع","الهاتف","جهة الاتصال","المستفيد","القيمة ","الملاحظات"]
[]
[]
[]
[]
[]
[null,"الإجمالي",{"$nulls":4},{"$f":"SUBTOTAL(109,جدول_خطط_المعاش6[[القيمة ]])","v":{"v":0,"d":"ر.س.‏ 0.00"}}]